[Event "Titled Tuesday Blitz November 14 Early 2023"]
[White "Bogaudinov, Rushan"]
[Black "Pasmendjambvirgulptipon98"]
[WhiteFideId "4129288"]
[WhiteElo "2331"]
[BlackElo "2117"]
[Result "1/2-1/2"]
[Round "5"]
[TimeControl "180+1"]
[Date "2023.11.14"]
[WhiteClock "0:00:08"]
[BlackClock "0:00:08"]
[Board "197"]

1. e4 {[%clk 0:02:59]}  c5 {[%clk 0:02:54]} 2. Nf3 {[%clk 0:02:58]}  Nc6 {[%clk 0:02:48]} 3. Bb5 {[%clk 0:02:58]}  d6 {[%clk 0:02:39]} 4. O-O {[%clk 0:02:57]}  Bd7 {[%clk 0:02:38]} 5. c3 {[%clk 0:02:56]}  a6 {[%clk 0:02:37]} 6. Ba4 {[%clk 0:02:56]}  b5 {[%clk 0:02:35]} 7. Bc2 {[%clk 0:02:56]}  Bg4 {[%clk 0:02:35]} 8. h3 {[%clk 0:02:55]}  Bxf3 {[%clk 0:02:30]} 9. Qxf3 {[%clk 0:02:55]}  g6 {[%clk 0:02:31]} 10. a4 {[%clk 0:02:50]}  b4 {[%clk 0:02:27]} 11. Bb3 {[%clk 0:02:36]}  Nf6 {[%clk 0:02:14]} 12. d3 {[%clk 0:02:30]}  Rb8 {[%clk 0:02:10]} 13. cxb4 {[%clk 0:02:08]}  Nd4 {[%clk 0:02:00]} 14. Qd1 {[%clk 0:02:08]}  Nxb3 {[%clk 0:01:56]} 15. Qxb3 {[%clk 0:02:07]}  Rxb4 {[%clk 0:01:56]} 16. Qc2 {[%clk 0:02:06]}  Bg7 {[%clk 0:01:56]} 17. Bd2 {[%clk 0:02:05]}  Rb8 {[%clk 0:01:52]} 18. Bc3 {[%clk 0:02:05]}  O-O {[%clk 0:01:51]} 19. Nd2 {[%clk 0:02:04]}  Qd7 {[%clk 0:01:30]} 20. Nc4 {[%clk 0:02:03]}  Nh5 {[%clk 0:01:19]} 21. Bxg7 {[%clk 0:02:02]}  Nxg7 {[%clk 0:01:19]} 22. f4 {[%clk 0:02:02]}  Ne6 {[%clk 0:01:16]} 23. f5 {[%clk 0:01:59]}  Nd4 {[%clk 0:01:16]} 24. Qf2 {[%clk 0:01:59]}  Rb3 {[%clk 0:01:02]} 25. Rad1 {[%clk 0:01:51]}  f6 {[%clk 0:00:51]} 26. a5 {[%clk 0:01:47]}  Kg7 {[%clk 0:00:44]} 27. Nb6 {[%clk 0:01:45]}  Qb7 {[%clk 0:00:36]} 28. Nc4 {[%clk 0:01:43]}  d5 {[%clk 0:00:25]} 29. exd5 {[%clk 0:01:42]}  Qxd5 {[%clk 0:00:26]} 30. fxg6 {[%clk 0:01:41]}  hxg6 {[%clk 0:00:25]} 31. Rfe1 {[%clk 0:01:34]}  e5 {[%clk 0:00:24]} 32. Re3 {[%clk 0:01:05]}  Nf5 {[%clk 0:00:20]} 33. Rf3 {[%clk 0:01:02]}  e4 {[%clk 0:00:21]} 34. Ne3 {[%clk 0:00:31]}  Nxe3 {[%clk 0:00:18]} 35. Rxe3 {[%clk 0:00:32]}  Rxd3 {[%clk 0:00:17]} 36. Rexd3 {[%clk 0:00:23]}  exd3 {[%clk 0:00:18]} 37. Qe3 {[%clk 0:00:23]}  c4 {[%clk 0:00:17]} 38. Qa7+ {[%clk 0:00:18]}  Rf7 {[%clk 0:00:16]} 39. Qxa6 {[%clk 0:00:19]}  Qd4+ {[%clk 0:00:16]} 40. Kh2 {[%clk 0:00:18]}  Rc7 {[%clk 0:00:13]} 41. Qe6 {[%clk 0:00:15]}  Qe5+ {[%clk 0:00:12]} 42. Qxe5 {[%clk 0:00:15]}  fxe5 {[%clk 0:00:13]} 43. Kg3 {[%clk 0:00:14]}  Kf6 {[%clk 0:00:13]} 44. Kf3 {[%clk 0:00:14]}  Kf5 {[%clk 0:00:14]} 45. Ke3 {[%clk 0:00:14]}  Ra7 {[%clk 0:00:11]} 46. Rc1 {[%clk 0:00:13]}  Rxa5 {[%clk 0:00:08]} 47. Rxc4 {[%clk 0:00:13]}  Rd5 {[%clk 0:00:05]} 48. g4+ {[%clk 0:00:11]}  Kg5 {[%clk 0:00:04]} 49. Kd2 {[%clk 0:00:12]}  Kh4 {[%clk 0:00:04]} 50. b4 {[%clk 0:00:12]}  Kxh3 {[%clk 0:00:04]} 51. g5 {[%clk 0:00:12]}  Kg3 {[%clk 0:00:03]} 52. Rc5 {[%clk 0:00:10]}  Rd4 {[%clk 0:00:04]} 53. Rxe5 {[%clk 0:00:10]}  Rxb4 {[%clk 0:00:04]} 54. Re6 {[%clk 0:00:10]}  Kg4 {[%clk 0:00:02]} 55. Rxg6 {[%clk 0:00:11]}  Kf5 {[%clk 0:00:03]} 56. Rg8 {[%clk 0:00:11]}  Rg4 {[%clk 0:00:03]} 57. Kxd3 {[%clk 0:00:09]}  Rxg5 {[%clk 0:00:03]} 58. Rf8+ {[%clk 0:00:10]}  Kg4 {[%clk 0:00:04]} 59. Re8 {[%clk 0:00:10]}  Rf5 {[%clk 0:00:04]} 60. Ke4 {[%clk 0:00:10]}  Rg5 {[%clk 0:00:05]} 61. Rf8 {[%clk 0:00:10]}  Rg6 {[%clk 0:00:06]} 62. Rf4+ {[%clk 0:00:10]}  Kg5 {[%clk 0:00:05]} 63. Rf5+ {[%clk 0:00:11]}  Kg4 {[%clk 0:00:06]} 64. Rd5 {[%clk 0:00:10]}  Re6+ {[%clk 0:00:06]} 65. Kd3 {[%clk 0:00:11]}  Re1 {[%clk 0:00:06]} 66. Kd2 {[%clk 0:00:11]}  Re8 {[%clk 0:00:06]} 67. Kd3 {[%clk 0:00:11]}  Kf4 {[%clk 0:00:06]} 68. Rh5 {[%clk 0:00:10]}  Kg4 {[%clk 0:00:06]} 69. Rd5 {[%clk 0:00:10]}  Kf3 {[%clk 0:00:06]} 70. Rd7 {[%clk 0:00:10]}  Kf4 {[%clk 0:00:07]} 71. Rf7+ {[%clk 0:00:10]}  Ke5 {[%clk 0:00:07]} 72. Rf1 {[%clk 0:00:08]}  Kd5 {[%clk 0:00:07]} 73. Rf5+ {[%clk 0:00:08]}  Re5 {[%clk 0:00:07]} 74. Rxe5+ {[%clk 0:00:08]}  Kxe5 {[%clk 0:00:08]} 1/2-1/2


[Site "https://www.chess.com"]

[Event "Titled Tuesday Blitz November 14 Early 2023"]
[White "Perry, Patrick"]
[Black "Perez Rodriguez, Luis Manuel"]
[WhiteFideId "30917727"]
[BlackFideId "3503364"]
[WhiteElo "2195"]
[BlackElo "2603"]
[Result "1-0"]
[Round "5"]
[TimeControl "180+1"]
[Date "2023.11.14"]
[WhiteClock "0:02:10"]
[BlackClock "0:00:18"]
[Board "200"]

1. e4 {[%clk 0:03:00]}  e5 {[%clk 0:02:59]} 2. d4 {[%clk 0:03:00]}  exd4 {[%clk 0:02:59]} 3. Qxd4 {[%clk 0:03:01]}  Nc6 {[%clk 0:02:59]} 4. Qe3 {[%clk 0:03:00]}  Nf6 {[%clk 0:03:00]} 5. Bd3 {[%clk 0:02:59]}  Bb4+ {[%clk 0:02:52]} 6. Bd2 {[%clk 0:02:56]}  O-O {[%clk 0:02:51]} 7. Ne2 {[%clk 0:02:54]}  d5 {[%clk 0:02:51]} 8. exd5 {[%clk 0:02:53]}  Nxd5 {[%clk 0:02:49]} 9. Qg3 {[%clk 0:02:53]}  Qf6 {[%clk 0:02:32]} 10. Nbc3 {[%clk 0:02:50]}  Nxc3 {[%clk 0:02:27]} 11. Bxc3 {[%clk 0:02:48]}  Bxc3+ {[%clk 0:02:17]} 12. bxc3 {[%clk 0:02:47]}  Bf5 {[%clk 0:02:03]} 13. O-O {[%clk 0:02:47]}  Ne5 {[%clk 0:02:01]} 14. Nd4 {[%clk 0:02:39]}  Bg6 {[%clk 0:02:00]} 15. Rab1 {[%clk 0:02:34]}  b6 {[%clk 0:01:58]} 16. f4 {[%clk 0:02:31]}  Nxd3 {[%clk 0:01:57]} 17. cxd3 {[%clk 0:02:30]}  c5 {[%clk 0:01:55]} 18. f5 {[%clk 0:02:30]}  cxd4 {[%clk 0:01:49]} 19. fxg6 {[%clk 0:02:30]}  Qxg6 {[%clk 0:01:50]} 20. Qxg6 {[%clk 0:02:29]}  hxg6 {[%clk 0:01:51]} 21. cxd4 {[%clk 0:02:25]}  Rfd8 {[%clk 0:01:51]} 22. Rf4 {[%clk 0:02:24]}  Rd7 {[%clk 0:01:49]} 23. Re4 {[%clk 0:02:22]}  Rad8 {[%clk 0:01:49]} 24. Rb4 {[%clk 0:02:22]}  Kf8 {[%clk 0:01:49]} 25. Kf2 {[%clk 0:02:21]}  Rd5 {[%clk 0:01:47]} 26. Ke3 {[%clk 0:02:20]}  Rg5 {[%clk 0:01:40]} 27. g3 {[%clk 0:02:20]}  Rh5 {[%clk 0:01:40]} 28. h4 {[%clk 0:02:19]}  Ra5 {[%clk 0:01:41]} 29. a4 {[%clk 0:02:18]}  Rc8 {[%clk 0:01:39]} 30. Re5 {[%clk 0:02:18]}  Re8 {[%clk 0:01:38]} 31. Ke4 {[%clk 0:02:16]}  f6 {[%clk 0:01:35]} 32. Rxe8+ {[%clk 0:02:16]}  Kxe8 {[%clk 0:01:36]} 33. d5 {[%clk 0:02:16]}  Kd7 {[%clk 0:01:35]} 34. Rc4 {[%clk 0:02:16]}  Rc5 {[%clk 0:01:25]} 35. Kd4 {[%clk 0:02:14]}  Rxc4+ {[%clk 0:01:14]} 36. dxc4 {[%clk 0:02:13]}  Kd6 {[%clk 0:01:14]} 37. a5 {[%clk 0:02:12]}  Kc7 {[%clk 0:00:48]} 38. c5 {[%clk 0:02:12]}  bxc5+ {[%clk 0:00:42]} 39. Kxc5 {[%clk 0:02:11]}  Kd7 {[%clk 0:00:42]} 40. d6 {[%clk 0:02:10]}  a6 {[%clk 0:00:18]} 41. Kd5 {[%clk 0:02:10]} 1-0


[Site "https://www.chess.com"]

[Event "Titled Tuesday Blitz November 14 Early 2023"]
[White "Alimpic, Aleksa"]
[Black "campochess"]
[WhiteFideId "974323"]
[WhiteElo "2519"]
[BlackElo "2176"]
[Result "1-0"]
[Round "5"]
[TimeControl "180+1"]
[Date "2023.11.14"]
[WhiteClock "0:01:08"]
[BlackClock "0:00:38"]
[Board "201"]

1. d4 {[%clk 0:02:55]}  Nf6 {[%clk 0:02:56]} 2. Nf3 {[%clk 0:02:55]}  c5 {[%clk 0:02:56]} 3. d5 {[%clk 0:02:53]}  g6 {[%clk 0:02:55]} 4. Nc3 {[%clk 0:02:53]}  Bg7 {[%clk 0:02:55]} 5. e4 {[%clk 0:02:54]}  d6 {[%clk 0:02:55]} 6. Bb5+ {[%clk 0:02:54]}  Nfd7 {[%clk 0:02:54]} 7. a4 {[%clk 0:02:55]}  a6 {[%clk 0:02:54]} 8. Be2 {[%clk 0:02:53]}  O-O {[%clk 0:02:52]} 9. O-O {[%clk 0:02:53]}  Ne5 {[%clk 0:02:41]} 10. Nxe5 {[%clk 0:02:51]}  dxe5 {[%clk 0:02:40]} 11. Be3 {[%clk 0:02:43]}  Nd7 {[%clk 0:02:37]} 12. a5 {[%clk 0:02:38]}  f5 {[%clk 0:02:37]} 13. f3 {[%clk 0:02:34]}  Qc7 {[%clk 0:02:33]} 14. Qd2 {[%clk 0:02:18]}  f4 {[%clk 0:02:25]} 15. Bf2 {[%clk 0:02:17]}  Nf6 {[%clk 0:02:25]} 16. Na4 {[%clk 0:02:10]}  Nd7 {[%clk 0:02:19]} 17. Qc3 {[%clk 0:02:09]}  b5 {[%clk 0:01:54]} 18. axb6 {[%clk 0:02:04]}  Nxb6 {[%clk 0:01:50]} 19. Qxc5 {[%clk 0:02:03]}  Qxc5 {[%clk 0:01:46]} 20. Bxc5 {[%clk 0:02:04]}  Nd7 {[%clk 0:01:43]} 21. Bxe7 {[%clk 0:02:02]}  Rf7 {[%clk 0:01:43]} 22. d6 {[%clk 0:02:00]}  Rb8 {[%clk 0:01:29]} 23. Bc4 {[%clk 0:01:58]}  Rb4 {[%clk 0:01:29]} 24. Bxf7+ {[%clk 0:01:57]}  Kxf7 {[%clk 0:01:29]} 25. c3 {[%clk 0:01:53]}  Rb8 {[%clk 0:01:24]} 26. b4 {[%clk 0:01:53]}  Bf6 {[%clk 0:01:20]} 27. Bxf6 {[%clk 0:01:48]}  Kxf6 {[%clk 0:01:16]} 28. Rfd1 {[%clk 0:01:45]}  Ke6 {[%clk 0:01:15]} 29. Rab1 {[%clk 0:01:37]}  g5 {[%clk 0:01:12]} 30. c4 {[%clk 0:01:34]}  Nb6 {[%clk 0:01:05]} 31. Nxb6 {[%clk 0:01:33]}  Rxb6 {[%clk 0:01:05]} 32. c5 {[%clk 0:01:34]}  Rc6 {[%clk 0:01:05]} 33. Rd5 {[%clk 0:01:30]}  Bd7 {[%clk 0:01:05]} 34. Ra1 {[%clk 0:01:21]}  Bc8 {[%clk 0:00:58]} 35. Kf2 {[%clk 0:01:16]}  h6 {[%clk 0:00:58]} 36. Ke2 {[%clk 0:01:16]}  h5 {[%clk 0:00:59]} 37. h3 {[%clk 0:01:15]}  Bd7 {[%clk 0:00:56]} 38. Kd3 {[%clk 0:01:15]}  Bc8 {[%clk 0:00:55]} 39. Kc3 {[%clk 0:01:14]}  Bd7 {[%clk 0:00:53]} 40. Kc4 {[%clk 0:01:14]}  Bc8 {[%clk 0:00:52]} 41. b5 {[%clk 0:01:11]}  axb5+ {[%clk 0:00:50]} 42. Kxb5 {[%clk 0:01:12]}  Bb7 {[%clk 0:00:38]} 43. d7 {[%clk 0:01:08]} 1-0


[Site "https://www.chess.com"]

[Event "Titled Tuesday Blitz November 14 Early 2023"]
[White "Fakhretdinova, Margarita"]
[Black "thisjuan"]
[WhiteFideId "24103667"]
[WhiteElo "2353"]
[BlackElo "2168"]
[Result "0-1"]
[Round "5"]
[TimeControl "180+1"]
[Date "2023.11.14"]
[WhiteClock "0:00:03"]
[BlackClock "0:00:04"]
[Board "203"]

1. e4 {[%clk 0:02:55]}  c5 {[%clk 0:03:00]} 2. Nf3 {[%clk 0:02:51]}  g6 {[%clk 0:03:00]} 3. d4 {[%clk 0:02:50]}  cxd4 {[%clk 0:03:00]} 4. Nxd4 {[%clk 0:02:49]}  Nc6 {[%clk 0:03:00]} 5. Be3 {[%clk 0:02:47]}  Bg7 {[%clk 0:03:00]} 6. c4 {[%clk 0:02:45]}  Nf6 {[%clk 0:02:59]} 7. Nc3 {[%clk 0:02:45]}  d6 {[%clk 0:02:57]} 8. Be2 {[%clk 0:02:43]}  O-O {[%clk 0:02:48]} 9. O-O {[%clk 0:02:40]}  Qa5 {[%clk 0:02:45]} 10. Rc1 {[%clk 0:02:28]}  Bd7 {[%clk 0:02:42]} 11. f3 {[%clk 0:02:24]}  Rac8 {[%clk 0:02:33]} 12. Qd2 {[%clk 0:02:15]}  Rfd8 {[%clk 0:02:16]} 13. Rc2 {[%clk 0:01:59]}  Nb4 {[%clk 0:01:50]} 14. Ncb5 {[%clk 0:01:19]}  Bxb5 {[%clk 0:01:41]} 15. Nxb5 {[%clk 0:01:03]}  b6 {[%clk 0:01:30]} 16. Rc3 {[%clk 0:00:35]}  Nc6 {[%clk 0:00:56]} 17. Qc2 {[%clk 0:00:16]}  Qa6 {[%clk 0:00:41]} 18. b3 {[%clk 0:00:12]}  Nd7 {[%clk 0:00:36]} 19. Rd3 {[%clk 0:00:13]}  Qb7 {[%clk 0:00:27]} 20. Rd2 {[%clk 0:00:13]}  a6 {[%clk 0:00:23]} 21. Nd4 {[%clk 0:00:13]}  Nde5 {[%clk 0:00:22]} 22. Rfd1 {[%clk 0:00:12]}  b5 {[%clk 0:00:21]} 23. Qb1 {[%clk 0:00:10]}  Nxd4 {[%clk 0:00:19]} 24. Bxd4 {[%clk 0:00:10]}  bxc4 {[%clk 0:00:20]} 25. Bxe5 {[%clk 0:00:08]}  Bxe5 {[%clk 0:00:17]} 26. bxc4 {[%clk 0:00:09]}  Qa7+ {[%clk 0:00:11]} 27. Kh1 {[%clk 0:00:09]}  Bf4 {[%clk 0:00:12]} 28. Rd4 {[%clk 0:00:08]}  Be5 {[%clk 0:00:10]} 29. Rd5 {[%clk 0:00:08]}  Rb8 {[%clk 0:00:09]} 30. Qd3 {[%clk 0:00:08]}  Qb7 {[%clk 0:00:09]} 31. c5 {[%clk 0:00:09]}  e6 {[%clk 0:00:07]} 32. Rxd6 {[%clk 0:00:05]}  Bxd6 {[%clk 0:00:07]} 33. cxd6 {[%clk 0:00:06]}  Qb2 {[%clk 0:00:05]} 34. f4 {[%clk 0:00:06]}  Qb5 {[%clk 0:00:04]} 35. Qxb5 {[%clk 0:00:03]}  axb5 {[%clk 0:00:05]} 36. e5 {[%clk 0:00:04]}  Kf8 {[%clk 0:00:04]} 37. Rc1 {[%clk 0:00:04]}  Rbc8 {[%clk 0:00:04]} 38. Rxc8 {[%clk 0:00:04]}  Rxc8 {[%clk 0:00:04]} 39. g4 {[%clk 0:00:04]}  Rb8 {[%clk 0:00:04]} 40. Bf3 {[%clk 0:00:03]}  Ke8 {[%clk 0:00:05]} 41. Kg2 {[%clk 0:00:03]}  Kd8 {[%clk 0:00:05]} 42. Kf2 {[%clk 0:00:04]}  b4 {[%clk 0:00:06]} 43. Bc6 {[%clk 0:00:04]}  Rb6 {[%clk 0:00:06]} 44. Ba4 {[%clk 0:00:04]}  Ra6 {[%clk 0:00:06]} 45. Bb3 {[%clk 0:00:04]}  Rb6 {[%clk 0:00:04]} 46. Ke3 {[%clk 0:00:05]}  Rc6 {[%clk 0:00:04]} 47. Kd4 {[%clk 0:00:05]}  Rc3 {[%clk 0:00:05]} 48. Bc4 {[%clk 0:00:04]}  Rc2 {[%clk 0:00:04]} 49. h4 {[%clk 0:00:03]}  Rf2 {[%clk 0:00:04]} 50. Ke3 {[%clk 0:00:03]}  Rh2 {[%clk 0:00:04]} 51. h5 {[%clk 0:00:02]}  Rh4 {[%clk 0:00:03]} 52. hxg6 {[%clk 0:00:02]}  hxg6 {[%clk 0:00:03]} 53. Kf3 {[%clk 0:00:02]}  Rh3+ {[%clk 0:00:03]} 54. Ke4 {[%clk 0:00:02]}  Rc3 {[%clk 0:00:04]} 55. Bb3 {[%clk 0:00:02]}  Rc1 {[%clk 0:00:04]} 56. f5 {[%clk 0:00:02]}  Re1+ {[%clk 0:00:03]} 57. Kf4 {[%clk 0:00:02]}  Rf1+ {[%clk 0:00:03]} 58. Kg5 {[%clk 0:00:03]}  gxf5 {[%clk 0:00:04]} 59. Bc4 {[%clk 0:00:03]}  Rf2 {[%clk 0:00:03]} 60. Kf6 {[%clk 0:00:02]}  fxg4+ {[%clk 0:00:03]} 61. Kg5 {[%clk 0:00:02]}  g3 {[%clk 0:00:04]} 62. Kg4 {[%clk 0:00:02]}  g2 {[%clk 0:00:04]} 63. Kg3 {[%clk 0:00:02]}  g1=Q+ {[%clk 0:00:04]} 64. Kh4 {[%clk 0:00:03]}  Rh2# {[%clk 0:00:04]} 0-1


[Site "https://www.chess.com"]

[Event "Titled Tuesday Blitz November 14 Early 2023"]
[White "Tuleyeva-Aketayeva, Dana"]
[Black "Semenova, Alina"]
[WhiteFideId "13701932"]
[BlackFideId "24113875"]
[WhiteElo "2300"]
[BlackElo "2165"]
[Result "1-0"]
[Round "5"]
[TimeControl "180+1"]
[Date "2023.11.14"]
[WhiteClock "0:01:24"]
[BlackClock "0:00:00"]
[Board "204"]

1. d4 {[%clk 0:03:00]}  Nf6 {[%clk 0:02:59]} 2. Nf3 {[%clk 0:03:00]}  e6 {[%clk 0:02:59]} 3. g3 {[%clk 0:03:00]}  b6 {[%clk 0:02:59]} 4. Bg2 {[%clk 0:03:00]}  Bb7 {[%clk 0:02:59]} 5. O-O {[%clk 0:03:00]}  Be7 {[%clk 0:02:59]} 6. c4 {[%clk 0:02:58]}  O-O {[%clk 0:02:59]} 7. Nc3 {[%clk 0:02:58]}  d5 {[%clk 0:02:54]} 8. Ne5 {[%clk 0:02:49]}  Nbd7 {[%clk 0:02:51]} 9. cxd5 {[%clk 0:02:46]}  exd5 {[%clk 0:02:46]} 10. Bf4 {[%clk 0:02:46]}  Nxe5 {[%clk 0:02:28]} 11. dxe5 {[%clk 0:02:44]}  Ne4 {[%clk 0:02:28]} 12. Nxe4 {[%clk 0:02:42]}  dxe4 {[%clk 0:02:29]} 13. Qc2 {[%clk 0:02:36]}  c5 {[%clk 0:01:29]} 14. Bxe4 {[%clk 0:02:33]}  Bxe4 {[%clk 0:01:30]} 15. Qxe4 {[%clk 0:02:34]}  Qc8 {[%clk 0:01:31]} 16. Rfd1 {[%clk 0:02:32]}  Qe6 {[%clk 0:01:30]} 17. Qd5 {[%clk 0:02:31]}  Rfd8 {[%clk 0:01:28]} 18. Qxe6 {[%clk 0:02:28]}  fxe6 {[%clk 0:01:29]} 19. h4 {[%clk 0:02:25]}  Kf7 {[%clk 0:01:25]} 20. Kf1 {[%clk 0:02:23]}  h5 {[%clk 0:01:08]} 21. Bg5 {[%clk 0:02:06]}  Bxg5 {[%clk 0:01:06]} 22. hxg5 {[%clk 0:02:07]}  g6 {[%clk 0:01:05]} 23. e3 {[%clk 0:02:02]}  Ke7 {[%clk 0:01:02]} 24. Ke2 {[%clk 0:02:01]}  Rd5 {[%clk 0:00:55]} 25. f4 {[%clk 0:01:52]}  Rh8 {[%clk 0:00:42]} 26. e4 {[%clk 0:01:44]}  Rxd1 {[%clk 0:00:41]} 27. Rxd1 {[%clk 0:01:41]}  Rc8 {[%clk 0:00:11]} 28. Kf3 {[%clk 0:01:35]}  b5 {[%clk 0:00:09]} 29. g4 {[%clk 0:01:35]}  hxg4+ {[%clk 0:00:07]} 30. Kxg4 {[%clk 0:01:35]}  Rh8 {[%clk 0:00:07]} 31. Rd2 {[%clk 0:01:31]}  Rh1 {[%clk 0:00:00]} 32. Rg2 {[%clk 0:01:24]} 1-0


[Site "https://www.chess.com"]

[Event "Titled Tuesday Blitz November 14 Early 2023"]
[White "Silvestre, Christian"]
[Black "IsaqueGoncalvesSanto"]
[WhiteFideId "30956269"]
[WhiteElo "2225"]
[BlackElo "1878"]
[Result "1-0"]
[Round "5"]
[TimeControl "180+1"]
[Date "2023.11.14"]
[WhiteClock "0:00:17"]
[BlackClock "0:00:09"]
[Board "209"]

1. e4 {[%clk 0:03:00]}  e6 {[%clk 0:02:59]} 2. Qe2 {[%clk 0:02:47]}  c5 {[%clk 0:02:58]} 3. c3 {[%clk 0:02:46]}  d5 {[%clk 0:02:55]} 4. d3 {[%clk 0:02:44]}  Nf6 {[%clk 0:02:53]} 5. g3 {[%clk 0:02:43]}  Be7 {[%clk 0:02:50]} 6. Bg2 {[%clk 0:02:43]}  b6 {[%clk 0:02:49]} 7. Nd2 {[%clk 0:02:36]}  Ba6 {[%clk 0:02:47]} 8. c4 {[%clk 0:02:36]}  dxe4 {[%clk 0:02:31]} 9. Nxe4 {[%clk 0:02:35]}  Nxe4 {[%clk 0:02:20]} 10. Qxe4 {[%clk 0:02:22]}  O-O {[%clk 0:02:14]} 11. Qxa8 {[%clk 0:02:20]}  Qxd3 {[%clk 0:02:13]} 12. Qe4 {[%clk 0:02:21]}  Qd8 {[%clk 0:01:47]} 13. b3 {[%clk 0:02:03]}  Nd7 {[%clk 0:01:44]} 14. Bb2 {[%clk 0:02:01]}  Nf6 {[%clk 0:01:43]} 15. Qe2 {[%clk 0:01:59]}  Qc7 {[%clk 0:01:18]} 16. Nf3 {[%clk 0:01:56]}  Nd5 {[%clk 0:01:17]} 17. O-O {[%clk 0:01:55]}  Nb4 {[%clk 0:01:11]} 18. Rfd1 {[%clk 0:01:49]}  Nc6 {[%clk 0:01:01]} 19. Rd2 {[%clk 0:01:38]}  Bc8 {[%clk 0:00:55]} 20. Rad1 {[%clk 0:01:36]}  Nb4 {[%clk 0:00:54]} 21. a3 {[%clk 0:01:34]}  Nc6 {[%clk 0:00:53]} 22. Ne5 {[%clk 0:01:33]}  Na5 {[%clk 0:00:51]} 23. Rd7 {[%clk 0:01:20]}  Bxd7 {[%clk 0:00:24]} 24. Rxd7 {[%clk 0:01:21]}  Qc8 {[%clk 0:00:17]} 25. Rxe7 {[%clk 0:01:17]}  Nxb3 {[%clk 0:00:17]} 26. Qg4 {[%clk 0:01:13]}  Qd8 {[%clk 0:00:11]} 27. Nc6 {[%clk 0:01:11]}  Qd2 {[%clk 0:00:09]} 28. Qxg7# {[%clk 0:00:17]} 1-0


[Site "https://www.chess.com"]

[Event "Titled Tuesday Blitz November 14 Early 2023"]
[White "Vargas, Mauricio"]
[Black "Cueto, Jonny"]
[WhiteFideId "4404572"]
[BlackFideId "3300145"]
[WhiteElo "1859"]
[BlackElo "2222"]
[Result "0-1"]
[Round "5"]
[TimeControl "180+1"]
[Date "2023.11.14"]
[WhiteClock "0:01:14"]
[BlackClock "0:00:32"]
[Board "210"]

1. e4 {[%clk 0:02:59]}  e6 {[%clk 0:02:53]} 2. f4 {[%clk 0:02:59]}  d5 {[%clk 0:02:52]} 3. e5 {[%clk 0:02:54]}  c5 {[%clk 0:02:50]} 4. Nf3 {[%clk 0:02:45]}  Nh6 {[%clk 0:02:51]} 5. h3 {[%clk 0:02:42]}  Nc6 {[%clk 0:02:47]} 6. g4 {[%clk 0:02:42]}  Be7 {[%clk 0:02:41]} 7. Bg2 {[%clk 0:02:34]}  Bh4+ {[%clk 0:02:41]} 8. Nxh4 {[%clk 0:02:33]}  Qxh4+ {[%clk 0:02:42]} 9. Kf1 {[%clk 0:02:32]}  f6 {[%clk 0:02:05]} 10. d4 {[%clk 0:02:25]}  fxe5 {[%clk 0:02:00]} 11. dxe5 {[%clk 0:02:23]}  O-O {[%clk 0:01:55]} 12. Kg1 {[%clk 0:02:20]}  Bd7 {[%clk 0:01:14]} 13. Bxd5 {[%clk 0:02:09]}  Rad8 {[%clk 0:01:11]} 14. Bg2 {[%clk 0:02:07]}  Nxe5 {[%clk 0:00:44]} 15. fxe5 {[%clk 0:01:56]}  Qf2+ {[%clk 0:00:44]} 16. Kh2 {[%clk 0:01:56]}  Bc6 {[%clk 0:00:44]} 17. Rg1 {[%clk 0:01:52]}  Rxd1 {[%clk 0:00:40]} 18. Be3 {[%clk 0:01:26]}  Rxg1 {[%clk 0:00:30]} 19. Bxf2 {[%clk 0:01:25]}  Rxg2+ {[%clk 0:00:30]} 20. Kh1 {[%clk 0:01:22]}  Rfxf2 {[%clk 0:00:31]} 21. Nc3 {[%clk 0:01:14]}  Rh2+ {[%clk 0:00:31]} 22. Kg1 {[%clk 0:01:14]}  Rfg2+ {[%clk 0:00:32]} 23. Kf1 {[%clk 0:01:14]}  Rh1# {[%clk 0:00:32]} 0-1


[Site "https://www.chess.com"]

[Event "Titled Tuesday Blitz November 14 Early 2023"]
[White "Kamsky, Gata"]
[Black "Nazari, Arad"]
[WhiteFideId "2000024"]
[BlackFideId "12577324"]
[WhiteElo "2903"]
[BlackElo "2777"]
[Result "1-0"]
[Round "6"]
[TimeControl "180+1"]
[Date "2023.11.14"]
[WhiteClock "0:00:13"]
[BlackClock "0:00:00"]
[Board "7"]

1. d4 {[%clk 0:02:54]}  Nf6 {[%clk 0:02:58]} 2. Bf4 {[%clk 0:02:51]}  g6 {[%clk 0:02:55]} 3. c3 {[%clk 0:02:50]}  Bg7 {[%clk 0:02:55]} 4. Nf3 {[%clk 0:02:50]}  O-O {[%clk 0:02:55]} 5. h3 {[%clk 0:02:42]}  b6 {[%clk 0:02:55]} 6. e3 {[%clk 0:02:42]}  Bb7 {[%clk 0:02:55]} 7. a4 {[%clk 0:02:42]}  a5 {[%clk 0:02:54]} 8. Nbd2 {[%clk 0:02:41]}  d6 {[%clk 0:02:54]} 9. Bb5 {[%clk 0:02:41]}  Nbd7 {[%clk 0:02:52]} 10. O-O {[%clk 0:02:41]}  Ne4 {[%clk 0:02:47]} 11. Nxe4 {[%clk 0:02:39]}  Bxe4 {[%clk 0:02:48]} 12. Re1 {[%clk 0:02:39]}  e5 {[%clk 0:02:42]} 13. Bg3 {[%clk 0:02:26]}  c6 {[%clk 0:02:34]} 14. Bf1 {[%clk 0:02:18]}  exd4 {[%clk 0:02:23]} 15. Nxd4 {[%clk 0:02:09]}  Be5 {[%clk 0:01:31]} 16. Ne2 {[%clk 0:01:30]}  Qe7 {[%clk 0:01:19]} 17. f3 {[%clk 0:01:23]}  Bd5 {[%clk 0:01:16]} 18. e4 {[%clk 0:01:09]}  Bc4 {[%clk 0:00:55]} 19. f4 {[%clk 0:01:08]}  Bxe2 {[%clk 0:00:46]} 20. Bxe2 {[%clk 0:00:57]}  Bg7 {[%clk 0:00:46]} 21. Bc4 {[%clk 0:00:55]}  Nc5 {[%clk 0:00:37]} 22. Qc2 {[%clk 0:00:47]}  Rad8 {[%clk 0:00:28]} 23. Bf2 {[%clk 0:00:44]}  Rfe8 {[%clk 0:00:25]} 24. Bxc5 {[%clk 0:00:39]}  bxc5 {[%clk 0:00:20]} 25. Qf2 {[%clk 0:00:34]}  Qc7 {[%clk 0:00:16]} 26. Rad1 {[%clk 0:00:33]}  Bf6 {[%clk 0:00:09]} 27. g3 {[%clk 0:00:33]}  Kg7 {[%clk 0:00:09]} 28. Kg2 {[%clk 0:00:32]}  h5 {[%clk 0:00:09]} 29. h4 {[%clk 0:00:31]}  Qe7 {[%clk 0:00:09]} 30. Re2 {[%clk 0:00:30]}  Qc7 {[%clk 0:00:09]} 31. Qf3 {[%clk 0:00:28]}  Rf8 {[%clk 0:00:09]} 32. Rde1 {[%clk 0:00:26]}  Rde8 {[%clk 0:00:06]} 33. Re3 {[%clk 0:00:26]}  Qb6 {[%clk 0:00:06]} 34. R1e2 {[%clk 0:00:25]}  Qc7 {[%clk 0:00:07]} 35. Qf2 {[%clk 0:00:22]}  Qd8 {[%clk 0:00:07]} 36. Ba2 {[%clk 0:00:17]}  Qc7 {[%clk 0:00:07]} 37. Qe1 {[%clk 0:00:17]}  Bd8 {[%clk 0:00:07]} 38. e5 {[%clk 0:00:16]}  d5 {[%clk 0:00:06]} 39. Bb1 {[%clk 0:00:15]}  c4 {[%clk 0:00:06]} 40. Rf3 {[%clk 0:00:15]}  Qe7 {[%clk 0:00:05]} 41. f5 {[%clk 0:00:15]}  gxf5 {[%clk 0:00:02]} 42. Rxf5 {[%clk 0:00:16]}  Qe6 {[%clk 0:00:02]} 43. Rxh5 {[%clk 0:00:15]}  f6 {[%clk 0:00:03]} 44. Qd2 {[%clk 0:00:13]}  fxe5 {[%clk 0:00:03]} 45. Rexe5 {[%clk 0:00:12]}  Qf6 {[%clk 0:00:03]} 46. Reg5+ {[%clk 0:00:12]}  Kf7 {[%clk 0:00:00]} 47. Rf5 {[%clk 0:00:13]} 1-0


[Site "https://www.chess.com"]